Workbook

Sheet Sheet2
A2: Wedding Budget 2019 - 2020
A3: To customize this budget for your own wedding, enter your total budget below. Feel free to alter the values in the "Your %" column to best fit your needs. The "Recommended %" is just that- a recommendation. The recommended amount to budget for each category will propogate into the "Amount" column when you update the "Your %" column, and the "Estimated Total" will also update as you change values. Happy budgeting! :)
A5: Total Budget | B5: 20000
C6: Your Amount | D6: Your % | E6: ACTUAL AMOUNT | F6: Recommended Amount | G6: Recommended %
B7: Venue, Food & Drink | C7: =B5*D7 -> 9000 | D7: 0.45 | F7: =B5*G7 -> 9000 | G7: 0.45
B8: Photography & Videography | C8: =B5*D8 -> 3600 | D8: 0.18 | F8: =B5*G8 -> 3600 | G8: 0.18
B9: Florals & Décor | C9: =B5*D9 -> 3000 | D9: 0.15 | F9: =B5*G9 -> 3000 | G9: 0.15
B10: Stationery | C10: =B5*D10 -> 1000 | D10: 0.05 | F10: =B5*G10 -> 1200 | G10: 0.06
B11: Entertainment | C11: =B5*D11 -> 800 | D11: 0.04 | F11: =B5*G11 -> 800 | G11: 0.04
B12: Ceremony | C12: =B5*D12 -> 200 | D12: 0.01 | F12: =B5*G12 -> 200 | G12: 0.01
B13: Planner | C13: =B5*D13 -> 2600 | D13: 0.13 | F13: =B5*G13 -> 2000 | G13: 0.1
B14: Miscellaneous | C14: =B5*D14 -> 400 | D14: 0.02 | F14: =B5*G14 -> 200 | G14: 0.01
B16: Estimated Total | C16: =SUM(C7:C15) -> 20600 | D16: =SUM(D7:D15) -> 1.03 | F16: =SUM(F7:F15) -> 20000 | G16: =SUM(G7:G15) -> 1
